[Event "Blixt-SM 2025"]
[Site "Norrköping, Sweden"]
[Date "2025.09.26"]
[Round "10.9"]
[White "Tadjerbashi, Amir"]
[Black "Israelsson, Lukas"]
[Result "1-0"]
[TimeControl "3 min + 2 sec/move"]
[WhiteElo "2235"]
[BlackElo "1975"]

1. e4 {[%clk 00:03:02]} {[%emt 00:00:01]} e6 {[%clk 00:03:04]} {[%emt
00:00:01]} 2. d4 {[%clk 00:03:03]} d5 {[%clk 00:03:05]} {[%emt 00:00:01]} 3.
Nd2 {[%clk 00:03:03]} {[%emt 00:00:02]} Nf6 {[%clk 00:03:05]} 4. e5 {[%clk
00:03:04]} Nfd7 {[%clk 00:03:06]} {[%emt 00:00:01]} 5. Bd3 {[%clk 00:03:06]} c5
{[%clk 00:03:07]} 6. c3 {[%clk 00:03:07]} Nc6 {[%clk 00:03:08]} 7. Ne2 {[%clk
00:03:08]} cxd4 {[%clk 00:03:09]} {[%emt 00:00:01]} 8. cxd4 {[%clk 00:03:09]}
f6 {[%clk 00:03:11]} 9. exf6 {[%clk 00:03:09]} {[%emt 00:00:02]} Nxf6 {[%clk
00:03:11]} {[%emt 00:00:01]} 10. Nf3 {[%clk 00:03:09]} {[%emt 00:00:03]} Bd6
{[%clk 00:03:12]} {[%emt 00:00:01]} 11. O-O {[%clk 00:03:09]} {[%emt 00:00:02]}
Qc7 {[%clk 00:03:13]} 12. Nc3 {[%clk 00:03:10]} {[%emt 00:00:02]} a6 {[%clk
00:03:10]} {[%emt 00:00:05]} 13. Bg5 {[%clk 00:03:10]} {[%emt 00:00:02]} O-O
{[%clk 00:03:11]} {[%emt 00:00:02]} 14. Bh4 {[%clk 00:03:11]} Bd7 {[%clk
00:03:06]} {[%emt 00:00:06]} 15. Bg3 {[%clk 00:03:12]} {[%emt 00:00:01]} b5
{[%clk 00:03:03]} {[%emt 00:00:05]} 16. Bxb5 {[%clk 00:03:08]} {[%emt
00:00:06]} Bxg3 {[%clk 00:02:50]} {[%emt 00:00:15]} 17. Bxc6 {[%clk 00:03:09]}
{[%emt 00:00:02]} Bxh2+ {[%clk 00:02:49]} {[%emt 00:00:02]} 18. Nxh2 {[%clk
00:03:09]} {[%emt 00:00:02]} Bxc6 {[%clk 00:02:39]} {[%emt 00:00:11]} 19. Rc1
{[%clk 00:03:06]} {[%emt 00:00:06]} Qd6 {[%clk 00:02:39]} {[%emt 00:00:02]} 20.
Re1 {[%clk 00:02:58]} {[%emt 00:00:11]} Ne4 {[%clk 00:02:34]} {[%emt 00:00:07]}
21. Nxe4 {[%clk 00:02:31]} {[%emt 00:00:29]} dxe4 {[%clk 00:02:34]} {[%emt
00:00:02]} 22. Ng4 {[%clk 00:02:30]} {[%emt 00:00:03]} Rad8 {[%clk 00:02:21]}
{[%emt 00:00:15]} 23. Ne5 {[%clk 00:01:58]} {[%emt 00:00:34]} Bb7 {[%clk
00:02:18]} {[%emt 00:00:06]} 24. Qg4 {[%clk 00:01:57]} {[%emt 00:00:03]} Rf5
{[%clk 00:02:04]} {[%emt 00:00:15]} 25. Red1 {[%clk 00:01:46]} {[%emt
00:00:13]} Rdf8 {[%clk 00:01:55]} {[%emt 00:00:11]} 26. Nc4 {[%clk 00:01:33]}
{[%emt 00:00:16]} Qd8 {[%clk 00:01:25]} {[%emt 00:00:31]} 27. Rc2 {[%clk
00:01:21]} {[%emt 00:00:14]} e3 {[%clk 00:00:46]} {[%emt 00:00:41]} 28. Nxe3
{[%clk 00:01:15]} {[%emt 00:00:08]} Bf3 {[%clk 00:00:47]} {[%emt 00:00:01]} 29.
Qg3 {[%clk 00:00:26]} {[%emt 00:00:51]} Bxd1 {[%clk 00:00:47]} {[%emt
00:00:02]} 30. Nxd1 {[%clk 00:00:27]} Qxd4 {[%clk 00:00:41]} {[%emt 00:00:09]}
31. Ne3 {[%clk 00:00:27]} {[%emt 00:00:02]} Rc5 {[%clk 00:00:29]} {[%emt
00:00:13]} 32. Rxc5 {[%clk 00:00:18]} {[%emt 00:00:11]} Qxc5 {[%clk 00:00:30]}
{[%emt 00:00:02]} 33. Qg4 {[%clk 00:00:14]} {[%emt 00:00:05]} Qc1+ {[%clk
00:00:26]} {[%emt 00:00:07]} 34. Kh2 {[%clk 00:00:15]} Qc7+ {[%clk 00:00:24]}
{[%emt 00:00:04]} 35. Kg1 {[%clk 00:00:14]} {[%emt 00:00:03]} Qe5 {[%clk
00:00:19]} {[%emt 00:00:07]} 36. Qc4 {[%clk 00:00:09]} {[%emt 00:00:07]} Qf6
{[%clk 00:00:08]} {[%emt 00:00:14]} 37. Qc2 {[%clk 00:00:09]} {[%emt 00:00:02]}
e5 {[%clk 00:00:08]} {[%emt 00:00:02]} 38. g3 {[%clk 00:00:10]} Qf3 {[%clk
00:00:09]} {[%emt 00:00:01]} 39. Qc4+ {[%clk 00:00:10]} {[%emt 00:00:03]} Kh8
{[%clk 00:00:10]} 40. Qc3 {[%clk 00:00:06]} {[%emt 00:00:05]} Qxf2+ {[%clk
00:00:09]} {[%emt 00:00:03]} 41. Kh1 {[%clk 00:00:07]} {[%emt 00:00:01]} Qxg3
{[%clk 00:00:05]} {[%emt 00:00:06]} 42. Qd2 {[%clk 00:00:08]} {[%emt 00:00:01]}
Qh3+ {[%clk 00:00:05]} {[%emt 00:00:02]} 43. Kg1 {[%clk 00:00:09]} {[%emt
00:00:02]} h6 {[%clk 00:00:04]} {[%emt 00:00:02]} 44. Ng2 {[%clk 00:00:09]}
{[%emt 00:00:02]} Qf3 {[%emt 00:00:04]} 1-0

[Event "Blixt-SM 2025"]
[Site "Norrköping, Sweden"]
[Date "2025.09.26"]
[Round "1.4"]
[White "Sandberg, Lucas"]
[Black "Lilliehook, Victor"]
[Result "0-1"]
[TimeControl "3 min + 2 sec/move"]
[WhiteElo "2268"]
[BlackElo "2136"]

1. d3 {[%clk 00:03:03]} d5 {[%clk 00:02:58]} {[%emt 00:00:06]} 2. Nd2 {[%emt
00:00:04]} c5 {[%clk 00:02:45]} {[%emt 00:00:13]} 3. e4 {[%clk 00:03:04]}
{[%emt 00:00:01]} e6 {[%clk 00:02:30]} {[%emt 00:00:17]} 4. Ngf3 {[%clk
00:03:04]} {[%emt 00:00:02]} Nc6 {[%clk 00:02:31]} 5. g3 {[%clk 00:03:05]} Nf6
{[%clk 00:02:24]} {[%emt 00:00:09]} 6. Bg2 {[%clk 00:03:05]} {[%emt 00:00:02]}
Be7 {[%clk 00:02:25]} 7. O-O {[%clk 00:03:06]} {[%emt 00:00:02]} b6 {[%clk
00:02:24]} {[%emt 00:00:03]} 8. Re1 {[%clk 00:03:07]} Bb7 {[%clk 00:02:12]}
{[%emt 00:00:14]} 9. e5 {[%clk 00:03:05]} {[%emt 00:00:04]} Nd7 {[%clk
00:02:13]} 10. Nf1 {[%clk 00:03:06]} Qc7 {[%clk 00:02:10]} {[%emt 00:00:05]} 11.
Bf4 {[%clk 00:03:04]} {[%emt 00:00:04]} O-O-O {[%clk 00:01:53]} {[%emt
00:00:20]} 12. c3 {[%clk 00:02:50]} {[%emt 00:00:15]} Rdg8 {[%clk 00:01:43]}
{[%emt 00:00:12]} 13. g4 {[%clk 00:02:06]} {[%emt 00:00:47]} g5 {[%clk
00:01:36]} {[%emt 00:00:09]} 14. Bg3 {[%clk 00:02:07]} h5 {[%clk 00:01:38]} 15.
h3 {[%emt 00:00:03]} hxg4 {[%clk 00:01:14]} {[%emt 00:00:25]} 16. hxg4 {[%clk
00:02:09]} Kb8 {[%clk 00:01:08]} {[%emt 00:00:07]} 17. a3 {[%clk 00:02:10]}
{[%emt 00:00:02]} Ka8 {[%clk 00:01:02]} {[%emt 00:00:08]} 18. b4 {[%clk
00:02:11]} {[%emt 00:00:01]} Rb8 {[%clk 00:00:28]} {[%emt 00:00:36]} 19. d4
{[%clk 00:02:06]} {[%emt 00:00:07]} c4 {[%clk 00:00:27]} {[%emt 00:00:03]} 20.
a4 {[%clk 00:02:06]} {[%emt 00:00:02]} Bc8 {[%clk 00:00:19]} {[%emt 00:00:10]}
21. Ne3 {[%clk 00:01:55]} {[%emt 00:00:12]} Qd8 {[%clk 00:00:13]} {[%emt
00:00:09]} 22. Nd2 {[%clk 00:01:51]} {[%emt 00:00:06]} Bb7 {[%clk 00:00:13]}
{[%emt 00:00:02]} 23. a5 {[%clk 00:01:41]} {[%emt 00:00:12]} bxa5 {[%emt
00:00:03]} 24. b5 Qc7 {[%clk 00:00:07]} {[%emt 00:00:07]} 25. bxc6 {[%clk
00:01:43]} {[%emt 00:00:02]} Bxc6 {[%clk 00:00:08]} 26. Qf3 {[%clk 00:01:38]}
{[%emt 00:00:06]} Rhf8 {[%clk 00:00:06]} {[%emt 00:00:05]} 27. Ndxc4 {[%clk
00:01:37]} {[%emt 00:00:03]} a4 {[%clk 00:00:06]} {[%emt 00:00:02]} 28. Nd6
{[%clk 00:01:34]} {[%emt 00:00:05]} Bxd6 {[%clk 00:00:06]} {[%emt 00:00:02]} 29.
exd6 {[%clk 00:01:35]} Qa5 {[%clk 00:00:07]} {[%emt 00:00:02]} 30. c4 {[%clk
00:01:26]} {[%emt 00:00:11]} Nb6 {[%clk 00:00:07]} {[%emt 00:00:02]} 31. Reb1
{[%clk 00:00:42]} {[%emt 00:00:45]} Rb7 {[%clk 00:00:08]} {[%emt 00:00:02]} 32.
c5 {[%clk 00:00:40]} {[%emt 00:00:04]} Nd7 {[%clk 00:00:09]} 33. Rxb7 {[%emt
00:00:04]} Bxb7 {[%emt 00:00:01]} 34. Qd1 {[%clk 00:00:30]} {[%emt 00:00:09]}
Bc6 {[%clk 00:00:12]} 35. Qc1 {[%clk 00:00:25]} {[%emt 00:00:07]} Rb8 {[%clk
00:00:13]} {[%emt 00:00:02]} 36. f3 {[%clk 00:00:25]} {[%emt 00:00:02]} f6
{[%clk 00:00:14]} 37. Be1 {[%clk 00:00:26]} Qb5 {[%clk 00:00:12]} {[%emt
00:00:03]} 38. Bf1 {[%clk 00:00:27]} Qb3 {[%clk 00:00:12]} {[%emt 00:00:02]} 39.
Ra3 {[%clk 00:00:24]} {[%emt 00:00:05]} Qb7 {[%clk 00:00:12]} {[%emt 00:00:02]}
40. Bd3 {[%clk 00:00:23]} {[%emt 00:00:04]} e5 {[%clk 00:00:10]} {[%emt
00:00:04]} 41. Nf5 {[%clk 00:00:19]} {[%emt 00:00:06]} exd4 {[%clk 00:00:10]}
{[%emt 00:00:02]} 42. Bg3 {[%clk 00:00:04]} {[%emt 00:00:16]} Qb4 {[%clk
00:00:08]} {[%emt 00:00:04]} 43. Be1 {[%emt 00:00:04]} Qxc5 {[%clk 00:00:06]}
{[%emt 00:00:04]} 44. Qxc5 {[%clk 00:00:04]} Nxc5 {[%clk 00:00:07]} {[%emt
00:00:01]} 45. Bc2 {[%clk 00:00:05]} Rb2 {[%clk 00:00:05]} {[%emt 00:00:04]} 46.
Bd1 {[%clk 00:00:03]} {[%emt 00:00:04]} Rb1 {[%clk 00:00:07]} {[%emt 00:00:01]}
0-1

[Event "Blixt-SM 2025"]
[Site "Norrköping, Sweden"]
[Date "2025.09.26"]
[Round "4.6"]
[White "Dingertz, Erik"]
[Black "Sandberg, Lucas"]
[Result "0-1"]
[TimeControl "3 min + 2 sec/move"]
[WhiteElo "2112"]
[BlackElo "2268"]

1. d4 {[%clk 00:03:02]} {[%emt 00:00:02]} g6 {[%clk 00:03:04]} 2. c4 {[%emt
00:00:01]} Bg7 3. Nc3 c5 4. Nf3 {[%clk 00:03:02]} {[%emt 00:00:05]} cxd4 {[%clk
00:03:07]} 5. Nxd4 {[%clk 00:03:03]} Nc6 {[%clk 00:03:09]} 6. Nc2 {[%clk
00:03:04]} {[%emt 00:00:02]} Nf6 {[%clk 00:03:09]} {[%emt 00:00:01]} 7. g3
{[%clk 00:03:03]} {[%emt 00:00:02]} O-O {[%clk 00:03:10]} {[%emt 00:00:02]} 8.
Bg2 {[%clk 00:03:05]} d6 {[%clk 00:03:11]} 9. O-O {[%clk 00:03:05]} {[%emt
00:00:01]} Be6 {[%clk 00:03:12]} 10. Nd5 {[%clk 00:03:04]} {[%emt 00:00:03]}
Rc8 {[%clk 00:03:13]} 11. Bg5 {[%clk 00:02:49]} {[%emt 00:00:17]} Bxd5 {[%clk
00:03:12]} {[%emt 00:00:04]} 12. cxd5 {[%clk 00:02:46]} {[%emt 00:00:05]} Ne5
{[%clk 00:03:13]} {[%emt 00:00:01]} 13. Rc1 {[%clk 00:02:33]} {[%emt 00:00:15]}
Qb6 {[%clk 00:03:09]} {[%emt 00:00:06]} 14. b3 {[%clk 00:02:30]} {[%emt
00:00:05]} h6 {[%clk 00:02:59]} {[%emt 00:00:12]} 15. Bf4 {[%clk 00:01:57]}
{[%emt 00:00:34]} Nfd7 {[%clk 00:02:59]} {[%emt 00:00:03]} 16. Qd2 {[%clk
00:01:53]} {[%emt 00:00:06]} Kh7 {[%clk 00:02:59]} {[%emt 00:00:02]} 17. Be3
{[%clk 00:01:36]} {[%emt 00:00:19]} Qa6 {[%clk 00:02:55]} {[%emt 00:00:06]} 18.
Nb4 {[%clk 00:01:01]} {[%emt 00:00:37]} Qa5 {[%clk 00:02:53]} {[%emt 00:00:04]}
19. Rfd1 {[%clk 00:00:54]} {[%emt 00:00:08]} Nc5 {[%clk 00:02:22]} {[%emt
00:00:33]} 20. Bd4 {[%clk 00:00:22]} {[%emt 00:00:34]} Na6 {[%clk 00:02:17]}
{[%emt 00:00:07]} 21. Rxc8 {[%clk 00:00:20]} {[%emt 00:00:04]} Rxc8 {[%clk
00:02:18]} {[%emt 00:00:01]} 22. Nxa6 {[%clk 00:00:21]} {[%emt 00:00:01]} Qxa6
{[%clk 00:02:08]} {[%emt 00:00:12]} 23. Qb2 {[%clk 00:00:18]} {[%emt 00:00:05]}
f6 {[%clk 00:02:04]} {[%emt 00:00:06]} 24. h4 {[%clk 00:00:16]} {[%emt
00:00:04]} h5 {[%clk 00:01:53]} {[%emt 00:00:13]} 25. Be4 {[%clk 00:00:12]}
{[%emt 00:00:05]} b6 {[%clk 00:01:47]} {[%emt 00:00:09]} 26. Kg2 {[%clk
00:00:11]} {[%emt 00:00:03]} Qb7 {[%clk 00:01:48]} {[%emt 00:00:01]} 27. Be3
{[%clk 00:00:06]} {[%emt 00:00:07]} f5 {[%clk 00:01:48]} {[%emt 00:00:02]} 28.
Bb1 {[%clk 00:00:04]} {[%emt 00:00:04]} Nc4 {[%clk 00:01:45]} {[%emt 00:00:05]}
29. Qc1 {[%clk 00:00:05]} {[%emt 00:00:02]} Nxe3+ {[%clk 00:01:45]} {[%emt
00:00:02]} 30. Qxe3 {[%clk 00:00:06]} Qd7 {[%clk 00:01:38]} {[%emt 00:00:08]}
31. f3 {[%clk 00:00:04]} {[%emt 00:00:05]} Rc3 {[%clk 00:01:38]} {[%emt
00:00:03]} 32. Rd3 {[%clk 00:00:05]} Rc5 {[%clk 00:01:38]} {[%emt 00:00:01]} 33.
g4 {[%clk 00:00:04]} {[%emt 00:00:04]} fxg4 {[%clk 00:01:32]} {[%emt 00:00:08]}
34. f4 {[%clk 00:00:05]} {[%emt 00:00:02]} Qf5 {[%clk 00:01:22]} {[%emt
00:00:12]} 35. Rd1 {[%clk 00:00:05]} {[%emt 00:00:01]} Qf7 {[%clk 00:01:23]} 36.
Rf1 {[%clk 00:00:03]} {[%emt 00:00:04]} Qxd5+ {[%clk 00:01:21]} {[%emt
00:00:05]} 37. Be4 {[%clk 00:00:05]} Qd4 {[%clk 00:01:22]} 38. Qxd4 {[%clk
00:00:03]} {[%emt 00:00:04]} Bxd4 39. f5 gxf5 {[%clk 00:01:24]} {[%emt
00:00:01]} 40. Bxf5+ {[%clk 00:00:06]} Kg7 {[%clk 00:01:26]} 41. Bd3 {[%clk
00:00:05]} {[%emt 00:00:03]} e6 {[%clk 00:01:23]} {[%emt 00:00:05]} 42. Kg3
{[%clk 00:00:04]} {[%emt 00:00:03]} Be5+ {[%clk 00:01:24]} 43. Kg2 {[%clk
00:00:05]} Bf6 {[%clk 00:01:25]} 44. Kg3 {[%clk 00:00:06]} {[%emt 00:00:02]} d5
{[%clk 00:01:25]} {[%emt 00:00:01]} 45. e4 {[%clk 00:00:04]} {[%emt 00:00:04]}
Rc3 {[%clk 00:01:26]} {[%emt 00:00:01]} 46. Rd1 {[%clk 00:00:05]} {[%emt
00:00:01]} 0-1

[Event "Blixt-SM 2025"]
[Site "Norrköping, Sweden"]
[Date "2025.09.26"]
[Round "6.2"]
[White "Carlsson, Ludvig"]
[Black "Olsson, Linus"]
[Result "1-0"]
[TimeControl "3 min + 2 sec/move"]
[WhiteTitle "IM"]
[BlackTitle "FM"]
[WhiteElo "2389"]
[BlackElo "2166"]

1. c4 {[%clk 00:03:03]} {[%emt 00:00:01]} g6 {[%clk 00:03:01]} {[%emt
00:00:03]} 2. g3 {[%clk 00:03:02]} {[%emt 00:00:03]} Bg7 {[%clk 00:02:57]}
{[%emt 00:00:06]} 3. Bg2 {[%clk 00:03:03]} c6 {[%clk 00:02:54]} {[%emt
00:00:05]} 4. Nf3 {[%clk 00:02:58]} {[%emt 00:00:06]} Nf6 {[%clk 00:02:54]}
{[%emt 00:00:03]} 5. Nc3 {[%clk 00:02:57]} {[%emt 00:00:03]} O-O {[%clk
00:02:52]} {[%emt 00:00:04]} 6. O-O {[%clk 00:02:55]} {[%emt 00:00:04]} d5
{[%clk 00:02:53]} {[%emt 00:00:01]} 7. cxd5 {[%clk 00:02:55]} {[%emt 00:00:03]}
cxd5 {[%clk 00:02:54]} {[%emt 00:00:01]} 8. d4 {[%clk 00:02:55]} Ne4 {[%clk
00:02:54]} {[%emt 00:00:01]} 9. Bf4 {[%clk 00:02:53]} {[%emt 00:00:05]} Nxc3
{[%clk 00:02:50]} {[%emt 00:00:07]} 10. bxc3 {[%clk 00:02:53]} {[%emt
00:00:01]} Nc6 {[%clk 00:02:45]} {[%emt 00:00:07]} 11. Ne5 {[%clk 00:02:54]}
{[%emt 00:00:01]} Nxe5 {[%clk 00:02:39]} {[%emt 00:00:09]} 12. Bxe5 {[%clk
00:02:50]} {[%emt 00:00:05]} Bxe5 {[%clk 00:02:31]} {[%emt 00:00:11]} 13. dxe5
{[%clk 00:02:50]} {[%emt 00:00:01]} Be6 {[%clk 00:02:30]} {[%emt 00:00:02]} 14.
Qd4 {[%clk 00:02:43]} {[%emt 00:00:10]} Qa5 {[%clk 00:02:26]} {[%emt 00:00:06]}
15. Rfd1 {[%clk 00:02:25]} {[%emt 00:00:19]} Rfd8 {[%clk 00:01:40]} {[%emt
00:00:48]} 16. Qb4 {[%clk 00:02:23]} {[%emt 00:00:05]} Qc7 {[%clk 00:01:33]}
{[%emt 00:00:10]} 17. Qd4 {[%clk 00:01:47]} {[%emt 00:00:37]} Qa5 {[%clk
00:01:28]} {[%emt 00:00:07]} 18. Qb4 {[%clk 00:01:03]} {[%emt 00:00:46]} Qc7
{[%clk 00:01:29]} {[%emt 00:00:01]} 19. f4 {[%clk 00:01:04]} Rac8 {[%clk
00:01:27]} {[%emt 00:00:05]} 20. Rd3 {[%clk 00:01:01]} {[%emt 00:00:05]} Qc5+
{[%clk 00:01:20]} {[%emt 00:00:09]} 21. Qxc5 {[%clk 00:00:21]} {[%emt
00:00:42]} Rxc5 {[%clk 00:01:21]} {[%emt 00:00:02]} 22. e4 {[%clk 00:00:22]}
Rdc8 {[%clk 00:01:22]} {[%emt 00:00:02]} 23. exd5 {[%clk 00:00:12]} {[%emt
00:00:11]} Bf5 {[%clk 00:01:22]} {[%emt 00:00:02]} 24. Rd2 {[%clk 00:00:11]}
{[%emt 00:00:03]} Rxc3 {[%clk 00:01:22]} {[%emt 00:00:02]} 25. Rad1 {[%clk
00:00:03]} {[%emt 00:00:10]} b5 {[%clk 00:01:20]} {[%emt 00:00:05]} 26. Kf2
{[%clk 00:00:04]} b4 {[%clk 00:01:17]} {[%emt 00:00:06]} 27. d6 {[%clk
00:00:05]} exd6 {[%clk 00:01:17]} {[%emt 00:00:02]} 28. exd6 {[%clk 00:00:06]}
Bd7 {[%clk 00:01:16]} {[%emt 00:00:04]} 29. Re1 {[%clk 00:00:07]} a5 {[%clk
00:01:07]} {[%emt 00:00:11]} 30. Re7 {[%clk 00:00:08]} {[%emt 00:00:02]} Rd8
{[%clk 00:01:08]} {[%emt 00:00:01]} 31. Bd5 {[%clk 00:00:08]} {[%emt 00:00:01]}
Be6 {[%clk 00:00:48]} {[%emt 00:00:21]} 32. Bxe6 {[%clk 00:00:09]} fxe6 {[%clk
00:00:49]} {[%emt 00:00:01]} 33. d7 {[%clk 00:00:10]} Kf8 {[%clk 00:00:47]}
{[%emt 00:00:03]} 34. Rxh7 {[%clk 00:00:11]} {[%emt 00:00:02]} a4 {[%clk
00:00:44]} {[%emt 00:00:06]} 35. Rd6 {[%clk 00:00:04]} {[%emt 00:00:08]} Rc7
{[%clk 00:00:37]} {[%emt 00:00:09]} 36. Rxe6 {[%clk 00:00:04]} {[%emt
00:00:03]} Rdxd7 {[%clk 00:00:33]} {[%emt 00:00:06]} 37. Rxd7 {[%clk 00:00:04]}
{[%emt 00:00:02]} Rxd7 {[%clk 00:00:34]} 38. Rb6 {[%clk 00:00:05]} {[%emt
00:00:01]} Rd2+ {[%clk 00:00:32]} {[%emt 00:00:03]} 39. Kf3 {[%clk 00:00:05]}
{[%emt 00:00:02]} Rxh2 {[%clk 00:00:29]} {[%emt 00:00:05]} 40. Rxb4 {[%clk
00:00:06]} {[%emt 00:00:01]} Rxa2 {[%clk 00:00:30]} {[%emt 00:00:02]} 41. Rb7
{[%clk 00:00:06]} {[%emt 00:00:01]} Rc2 {[%clk 00:00:28]} {[%emt 00:00:04]} 42.
Ra7 {[%clk 00:00:07]} {[%emt 00:00:02]} Rc3+ {[%clk 00:00:25]} {[%emt
00:00:05]} 43. Kg4 {[%clk 00:00:08]} a3 {[%clk 00:00:26]} {[%emt 00:00:02]} 44.
Kh4 {[%clk 00:00:09]} Rb3 {[%clk 00:00:19]} {[%emt 00:00:08]} 45. g4 {[%clk
00:00:10]} {[%emt 00:00:01]} Rc3 {[%clk 00:00:15]} {[%emt 00:00:06]} 46. Kg5
{[%clk 00:00:10]} {[%emt 00:00:01]} Rg3 {[%clk 00:00:14]} {[%emt 00:00:04]} 47.
Kf6 {[%clk 00:00:08]} {[%emt 00:00:04]} Ke8 {[%clk 00:00:15]} {[%emt 00:00:02]}
48. g5 {[%clk 00:00:07]} {[%emt 00:00:02]} Rf3 {[%clk 00:00:14]} {[%emt
00:00:04]} 49. Ra8+ {[%clk 00:00:07]} Kd7 {[%clk 00:00:15]} {[%emt 00:00:01]}
50. Kxg6 {[%clk 00:00:08]} {[%emt 00:00:02]} Rxf4 {[%clk 00:00:06]} {[%emt
00:00:10]} 51. Rxa3 {[%clk 00:00:09]} {[%emt 00:00:02]} Re4 {[%clk 00:00:05]}
{[%emt 00:00:02]} 52. Ra7+ {[%clk 00:00:06]} {[%emt 00:00:05]} Ke8 {[%clk
00:00:03]} {[%emt 00:00:04]} 53. Kg7 {[%clk 00:00:07]} Re6 {[%clk 00:00:03]}
{[%emt 00:00:02]} 54. g6 {[%clk 00:00:08]} Kd8 {[%clk 00:00:03]} {[%emt
00:00:01]} 55. Kh7 {[%clk 00:00:07]} {[%emt 00:00:03]} Re1 {[%emt 00:00:03]} 56.
g7 {[%emt 00:00:01]} 1-0

[Event "Blixt-SM 2025"]
[Site "Norrköping, Sweden"]
[Date "2025.09.26"]
[Round "7.8"]
[White "Karlsson, Stefan 2005"]
[Black "Lilliehook, Victor"]
[Result "1-0"]
[TimeControl "3 min + 2 sec/move"]
[WhiteElo "2112"]
[BlackElo "2136"]

1. d3 {[%clk 00:03:02]} {[%emt 00:00:02]} d5 {[%clk 00:03:03]} {[%emt
00:00:02]} 2. Nf3 {[%clk 00:03:02]} {[%emt 00:00:02]} Nf6 {[%clk 00:03:01]}
{[%emt 00:00:03]} 3. g3 {[%emt 00:00:01]} c5 4. Bg2 {[%clk 00:03:04]} Nc6
{[%clk 00:03:03]} 5. O-O {[%clk 00:03:05]} {[%emt 00:00:02]} e5 {[%clk
00:03:04]} 6. e4 {[%clk 00:03:03]} {[%emt 00:00:03]} d4 {[%clk 00:03:05]}
{[%emt 00:00:02]} 7. Na3 {[%clk 00:03:01]} {[%emt 00:00:04]} Bg4 {[%clk
00:02:45]} {[%emt 00:00:22]} 8. h3 {[%clk 00:02:52]} {[%emt 00:00:11]} Bh5
{[%clk 00:02:45]} {[%emt 00:00:02]} 9. g4 {[%clk 00:02:37]} {[%emt 00:00:16]}
Bg6 {[%clk 00:02:42]} {[%emt 00:00:05]} 10. Nc4 {[%clk 00:02:26]} {[%emt
00:00:13]} Nd7 {[%clk 00:02:40]} {[%emt 00:00:04]} 11. Nfxe5 {[%clk 00:02:13]}
{[%emt 00:00:16]} Ndxe5 {[%clk 00:02:21]} {[%emt 00:00:21]} 12. Nxe5 {[%clk
00:02:14]} Nxe5 {[%clk 00:02:20]} {[%emt 00:00:03]} 13. f4 {[%clk 00:02:15]}
Bd6 {[%clk 00:01:55]} {[%emt 00:00:27]} 14. fxe5 {[%clk 00:01:21]} {[%emt
00:00:57]} Bxe5 {[%clk 00:01:56]} 15. Bf4 {[%clk 00:01:15]} {[%emt 00:00:07]}
Qd6 {[%clk 00:01:44]} {[%emt 00:00:15]} 16. Qd2 {[%clk 00:01:05]} {[%emt
00:00:12]} O-O-O {[%clk 00:01:26]} {[%emt 00:00:20]} 17. a4 {[%clk 00:00:53]}
{[%emt 00:00:14]} f6 {[%clk 00:01:15]} {[%emt 00:00:13]} 18. Bxe5 {[%clk
00:00:43]} {[%emt 00:00:12]} Qxe5 {[%clk 00:01:10]} {[%emt 00:00:07]} 19. b4
{[%clk 00:00:44]} {[%emt 00:00:01]} h5 {[%clk 00:01:03]} {[%emt 00:00:08]} 20.
g5 {[%clk 00:00:13]} {[%emt 00:00:32]} fxg5 {[%clk 00:00:28]} {[%emt 00:00:39]}
21. bxc5 {[%clk 00:00:12]} {[%emt 00:00:03]} g4 {[%clk 00:00:27]} {[%emt
00:00:03]} 22. h4 {[%clk 00:00:09]} {[%emt 00:00:04]} Qxc5 {[%clk 00:00:19]}
{[%emt 00:00:11]} 23. Rab1 {[%clk 00:00:11]} Rhf8 {[%clk 00:00:16]} {[%emt
00:00:05]} 24. Rxf8 {[%clk 00:00:05]} {[%emt 00:00:08]} Rxf8 {[%clk 00:00:17]}
25. Rb5 {[%clk 00:00:06]} Qe7 {[%clk 00:00:15]} {[%emt 00:00:03]} 26. e5 {[%clk
00:00:06]} {[%emt 00:00:02]} b6 {[%clk 00:00:13]} {[%emt 00:00:05]} 27. a5
{[%clk 00:00:04]} {[%emt 00:00:04]} bxa5 {[%clk 00:00:04]} {[%emt 00:00:12]} 28.
Qxa5 {[%clk 00:00:03]} {[%emt 00:00:03]} Qg5 29. hxg5 1-0